Cogmind - Beta 14 @@@ ROGUE MODE // 2024.09.12 @ 19:54:51 Player: jimmyl Result: Destroyed by G-47 Trooper with Particle Gun Performance ------------- Evolutions (2) 1000 Regions Visited (3) 600 Robots Destroyed (46) 230 Value Destroyed (1555) 1555 Prototype IDs (4) 80 Alien Tech Used (0) 0 Bonus (55) 55 TOTAL SCORE: 3520 Bonus ------- High Alert Combat Kills 55 Cogmind --------- Core Integrity 0/550 Matter 110/300 Energy 155/280 System Corruption 5% Temperature Hot (240) Movement Core (350) Ox6 Location -8/Materials Parts ------- > --- POWER (2) -------- Heavy Ion Engine > --- PROPULSION (2) --- (None) > --- UTILITY (4) ------ Medium Storage Unit Advanced Targeting Computer > --- WEAPON (3) ------- Particle Gun > --- INVENTORY (10) --- Light Ion Engine Signal Interpreter Peak State ------------ > --- POWER ------------ Heavy Ion Engine > --- PROPULSION ------- Carbon-fiber Leg Compact Wheel > --- UTILITY ---------- Medium Storage Unit Targeting Computer > --- WEAPON ----------- Improved Assault Rifle Improved Assault Rifle Minigun > --- INVENTORY -------- Light Ion Engine Heavy Ion Engine Signal Interpreter Advanced Targeting Computer Rocket Launcher [Rating: 19] Favorites ----------- Power Ion Engine Engine Ion Engine Propulsion Aluminum Leg Treads Improved Treads Leg Aluminum Leg Wheel Compact Wheel Hover Unit Airjet Utility Small Storage Unit Device Improved Heat Sink Storage Small Storage Unit Processor Targeting Computer Protection Light Armor Plating Weapon Improved Light Cannon Energy Gun Beam Rifle Ballistic Gun Minigun Ballistic Cannon Improved Light Cannon Launcher Rocket Launcher Impact Weapon Hammer Build | -11 -10 -9 -8 ------- Run | Yrd Mat Mat Mat Slots Evolved 4 | . . 2 2 Power 1 | . . . 1 Propulsion . | . . . . Utility 2 | . . 2 . Weapon 1 | . . . 1 Parts Attached 42 | . 9 17 16 Power 4 | . 1 1 2 Engine 4 | . 1 1 2 Core . | . . . . Reactor . | . . . . Propulsion 10 | . 2 6 2 Treads 4 | . 2 2 . Leg 3 | . . 2 1 Wheel 1 | . . . 1 Hover 2 | . . 2 . Flight . | . . . . Utility 8 | . 1 3 4 Device 2 | . 1 1 . Storage 2 | . . 1 1 Processor 2 | . . . 2 Hackware . | . . . . Protection 2 | . . 1 1 Artifact . | . . . . Weapon 20 | . 5 7 8 Energy Gun 6 | . 3 1 2 Energy Cannon . | . . . . Ballistic Gun 5 | . . . 5 Ballistic Cannon 4 | . . 4 . Launcher 1 | . . . 1 Special Weapon . | . . . . Impact Weapon 4 | . 2 2 . Slashing Weapon . | . . . . Piercing Weapon . | . . . . Special Melee Weapon . | . . . . Unidentified Prototypes 4 | . . 2 2 Parts Lost 22 | . 2 6 14 Power 2 | . . 1 1 Propulsion 6 | . 1 2 3 Utility 4 | . . . 4 Weapon 10 | . 1 3 6 Highest Loss Streak 9 | . 1 4 9 To Critical Strikes . | . . . . Average Slot Usage (%) 78 | . 94 78 63 Engine 9 | . 14 7 7 Treads 8 | . 4 16 . Leg 10 | . 22 1 13 Hover 1 | . . 3 . Device 9 | . 11 12 4 Storage 11 | . 14 10 9 Processor 2 | . . . 8 Protection 3 | . . 5 3 Energy Gun 3 | . 12 . . Ballistic Cannon 7 | . . 9 11 Impact Weapon 8 | . 14 10 . Peak Build Rating 19 | . 12 15 19 Average Rating 11 | . 9 11 11 On Entrance 7 | 6 6 9 10 Naked Turns . | . . . . Heaviest Build 27 | 12 17 21 27 Greatest Support 46 | 20 40 46 25 Greatest Overweight (x) 4 | . 1 1 4 Average Overweight (x) . | . . . . Largest Inventory Capacity 10 | . 8 8 10 Average Capacity 8 | . 8 7 8 Most Carried 8 | . 8 8 5 Average Carried 5 | . 7 6 4 Final Capacity 10 | 8 8 8 10 Final Carried 6 | 6 6 4 2 Class Distribution -------------------- 89% | Mutant 10% | Scavenger-Mutant Dominant Class ---------------- Mutant | -10/Materials Mutant | -9/Materials Mutant | -8/Materials Resources | -11 -10 -9 -8 ----------- Run | Yrd Mat Mat Mat Matter Collected 959 | 200 65 295 399 Remotely . | . . . . Salvage Created 1351 | . 393 463 495 Parts 59 | . 15 15 29 Haulers Intercepted 3 | . . 1 2 Recyclers Shooed . | . . . . Parts Field Recycled . | . . . . Retrieved Matter . | . . . . Parts Self-Destructed . | . . . . Prevented . | . . . . Kills | -11 -10 -9 -8 ------- Run | Yrd Mat Mat Mat Combat Hostiles Destroyed 36 | . 8 13 15 Melee 3 | . 1 2 . Guns 8 | . 6 . 2 Cannons 14 | . . 6 8 AOE 5 | . . . 5 Classes Destroyed 10 | . 3 3 4 Hauler 3 | . . 1 2 Recycler 1 | . 1 . . Mechanic 1 | . . . 1 Watcher 5 | . 1 1 3 Swarmer 6 | . . 3 3 Grunt 20 | . 8 6 6 Brawler 1 | . . . 1 Duelist 1 | . . . 1 Sentry 7 | . . 4 3 Hunter 1 | . . . 1 Best Kill Streak 8 | . 4 4 8 Combat Bots Only 7 | . 3 4 7 Max Kills in Single Turn 2 | . 1 1 2 Gunslinging . | . . . . Exploded 2 | . . . 2 Melee 1 | . 1 1 . Uniques/NPCs Destroyed . | . . . . Combat | -11 -10 -9 -8 -------- Run | Yrd Mat Mat Mat Hostile Shots Fired 358 | . 47 121 190 Missed 102 | . 13 38 51 Damage Taken 3610 | . 446 945 2219 Core 768 | . 21 182 565 Absorbed by Shields . | . . . . Regen/Repaired (Parts) 108 | . . 108 . Core Remaining (%) 81 | 100 91 54 . Volleys Fired 111 | . 20 21 70 Largest 3 | . 2 2 3 Hottest 130 | . 112 78 130 Shots Fired 185 | . 40 35 110 Gun 62 | . 40 . 22 Cannon 113 | . . 35 78 Launcher 10 | . . . 10 Special . | . . . . Kinetic 130 | . . 35 95 Thermal 45 | . 40 . 5 Explosive 10 | . . . 10 Electromagnetic . | . . . . Robot Hit Streak 12 | . 6 11 12 Robot Miss Streak 6 | . 3 5 6 Penetration Max . | . . . . Secondary Targets . | . . . . Shots Hit Robots 152 | . 33 48 71 Core Hits 70 | . 15 10 45 Critical Kills . | . . . . Critical Parts Destroyed 4 | . . 4 . Critical Strikes 15 | . 2 8 5 Burn 2 | . 2 . . Blast 7 | . . 2 5 Smash 6 | . . 6 . Melee Attacks 58 | . 11 47 . Impact 58 | . 11 47 . Slashing . | . . . . Piercing . | . . . . Sneak Attacks 2 | . 1 1 . Combat Hostiles . | . . . . Follow-up Attacks 5 | . 2 3 . Damage Inflicted 3803 | . 622 1071 2110 Guns 565 | . 324 . 241 Cannons 1447 | . . 381 1066 Explosions 798 | . . . 798 Melee 988 | . 298 690 . Ramming 5 | . . . 5 Kinetic 1623 | . . 381 1242 Thermal 533 | . 324 . 209 Explosive 654 | . . . 654 Electromagnetic . | . . . . Impact 988 | . 298 690 . Slashing . | . . . . Piercing . | . . . . Highest Corruption 5 | . . . 5 Average Corruption 4 | . . . 4 Corruption Purged . | . . . . Corruption Blocked . | . . . . Effects 1 | . . . 1 Data Loss (minor) 1 | . . . 1 Overload Shots . | . . . . Overflow Damage 246 | . 44 151 51 Projectiles 1 | . . 1 . Explosions 51 | . . . 51 Melee 194 | . 44 150 . Knockbacks 13 | . 1 2 10 Impact 4 | . 1 2 1 Kinetic 9 | . . . 9 Secondary . | . . . . Self-Inflicted Damage 206 | . . . 206 Shots 2 | . . . 2 Rammed 4 | . . . 4 Targets Rammed 4 | . . . 4 Kicked . | . . . . Crushed . | . . . . Highest Temperature 337 | . 294 . 337 Average Temperature 85 | . 93 . 78 Received Heat Transfer 1491 | . 267 315 909 Siege Activations . | . . . . Robots Corrupted 6 | . 1 5 . Combat Hostiles 6 | . 1 5 . Parts Fried 4 | . 1 3 . Impact Corruptions 11 | . 2 9 . Robots Melted . | . . . . Combat Hostiles . | . . . . Parts Melted 3 | . 3 . . Heat Transferred 1297 | . 999 . 298 Parts Sabotaged . | . . . . Parts Stolen . | . . . . Parts Stripped . | . . . . Power Chain Reactions . | . . . . Alert | -11 -10 -9 -8 ------- Run | Yrd Mat Mat Mat Peak Influence 550 | . 222 369 550 Initial 139 | . . 9 139 Average 171 | . 110 184 211 Maximum Alert Level 2 | . 1 1 2 Low Security (%) 57 | . 87 46 46 Level 1 41 | . 12 53 48 Level 2 1 | . . . 4 Level 3 . | . . . . Level 4 . | . . . . Level 5 . | . . . . High Security . | . . . . Max Security . | . . . . Squads Dispatched 7 | . 3 2 2 Investigation 2 | . 1 1 . Extermination . | . . . . Reinforcement 5 | . 2 1 2 Assault . | . . . . Garrison . | . . . . Intercept . | . . . . Searches Triggered . | . . . . Construction Impeded 1 | . . . 1 Haulers Reinforced . | . . . . Active Scanning Responses . | . . . . Cargo Convoy Interrupts . | . . . . Stealth | -11 -10 -9 -8 --------- Run | Yrd Mat Mat Mat Distress Signals 3 | . . 1 2 Communications Jammed . | . . . . Distress Signals . | . . . . Times Spotted 63 | . 13 21 29 Peak Tracking Total 11 | . 4 8 11 Tactical Retreats 4 | . 1 3 . Traps | -11 -10 -9 -8 ------- Run | Yrd Mat Mat Mat Traps Triggered 3 | . 2 1 . Indirectly . | . . . . Trap Hack Attempts . | . . . . Triggered . | . . . . Disarmed . | . . . . Reprogrammed . | . . . . Reused . | . . . . Traps Extracted . | . . . . Installed . | . . . . Triggered . | . . . . Machines | -11 -10 -9 -8 ---------- Run | Yrd Mat Mat Mat Machines Disabled 11 | . 1 4 6 Max in Single Turn 3 | . 1 1 3 Machines Repaired . | . . . . Machines Dismantled . | . . . . Machines Sabotaged . | . . . . Overloaded Fab Kills . | . . . . Hacking | -11 -10 -9 -8 --------- Run | Yrd Mat Mat Mat Machines Accessed 3 | . . 2 1 Terminals 2 | . . 1 1 Fabricators . | . . . . Repair Stations 1 | . . 1 . Recycling Units . | . . . . Scanalyzers . | . . . . Garrison Access . | . . . . Total Hacks 11 | . . 9 2 Successful 6 | . . 4 2 Failed 5 | . . 5 . Catastrophic . | . . . . Database Lockouts . | . . . . Manual 5 | . . 5 . Terminals 7 | . . 5 2 Fabricators . | . . . . Repair Stations 4 | . . 4 . Recycling Units . | . . . . Scanalyzers . | . . . . Garrison Access . | . . . . Terminal Hacks 4 | . . 2 2 Robot Analysis 2 | . . 2 . Unreport Threat 1 | . . . 1 Hauler Manifests 1 | . . . 1 Fabricator Hacks . | . . . . Repair Station Hacks 2 | . . 2 . Scan Component 1 | . . 1 . Repair 1 | . . 1 . Recycling Unit Hacks . | . . . . Scanalyzer . | . . . . Garrison Access Hacks . | . . . . Unauthorized Hacks . | . . . . Terminals . | . . . . Fabricators . | . . . . Repair Stations . | . . . . Recycling Units . | . . . . Scanalyzers . | . . . . Garrison Access . | . . . . Data Cores Recovered . | . . . . Used . | . . . . Hacking Detections 2 | . . 2 . Full Trace Events 1 | . . 1 . Feedback Events . | . . . . Feedback Blocked . | . . . . Robot Schematics Acquired . | . . . . Robots Built . | . . . . Authchips . | . . . . Time . | . . . . Total Robot Build Rating . | . . . . Part Schematics Acquired . | . . . . Parts Built . | . . . . Authchips . | . . . . Time . | . . . . Total Part Build Rating . | . . . . Parts Repaired 1 | . . 1 . Time 26 | . . 26 . Parts Recycled . | . . . . Recycled Matter . | . . . . Retrieved Matter . | . . . . Retrieved Components . | . . . . Parts Scanalyzed . | . . . . Part Schematics Acquired . | . . . . Parts Damaged . | . . . . Bothacking | -11 -10 -9 -8 ------------ Run | Yrd Mat Mat Mat Used RIF Installer . | . . . . Robots Hacked . | . . . . Non-combat . | . . . . Combat . | . . . . Robot Hacks Applied . | . . . . Relay Couplers Released . | . . . . Fabnet Peak Effective % . | . . . . Robots Rewired . | . . . . Allies Hacked . | . . . . Hacks Repelled . | . . . . Allies | -11 -10 -9 -8 -------- Run | Yrd Mat Mat Mat Total Allies . | . . . . Largest Group . | . . . . Highest-Rated Group . | . . . . Highest-Rated Ally . | . . . . Total Orders . | . . . . Ally Attacks . | . . . . Total Damage . | . . . . Kills . | . . . . Allies Corrupted . | . . . . Allies Melted . | . . . . Intel | -11 -10 -9 -8 ------- Run | Yrd Mat Mat Mat Robot Analysis Total 2 | . . 2 . Derelict Logs Recovered . | . . . . Drone Launches . | . . . . Drone Recoveries . | . . . . Exploration | -11 -10 -9 -8 ------------- Run | Yrd Mat Mat Mat Turns Passed 1581 | . 439 690 452 Spaces Moved 720 | 1 244 305 170 Core 8 | . . . 8 Treads 269 | . 41 228 . Legs 318 | 1 203 11 103 Wheels 59 | . . . 59 Hover 66 | . . 66 . Flight . | . . . . Fastest Speed 56 | 120 120 56 115 Average Speed 131 | 120 129 136 124 Slowest Speed 250 | 120 190 160 250 Overloaded Moves . | . . . . Propulsion Burnouts . | . . . . Robots Hopped . | . . . . Cave-ins Triggered . | . . . . Exploration Rate (%) 27 | 2 48 30 28 Regions Visited 3 Branch Regions . Pre-discovered Areas . | . . . . Known Exits Taken . | . . . . Unknown Exits Taken 3 | 1 1 1 . Scrap Searched . | . . . . Spaces Dug 1 | . . 1 . Terrain Destroyed 102 | . . 2 100 Melee 1 | . . 1 . Projectile 4 | . . 1 3 AOE 97 | . . . 97 Terrain Rammed . | . . . . Walls Destroyed . | . . . . Machines Disabled . | . . . . Actions | -11 -10 -9 -8 --------- Run | Yrd Mat Mat Mat Total 1077 | . 310 469 298 Wait 107 | . 19 59 29 Move 717 | . 243 304 170 Hop . | . . . . Pick Up 16 | . 4 8 4 Fast Attach 21 | . 5 7 9 Attach 21 | . 4 11 6 Detach 6 | . . 6 . Swap 1 | . . . 1 Drop 20 | . 6 9 5 Fire 111 | . 20 21 70 Melee 53 | . 9 44 . Ram 4 | . . . 4 Kick . | . . . . Crush . | . . . . Escape Stasis . | . . . . Rewire . | . . . . Trap . | . . . . Miscellaneous . | . . . . Route ------- -11/Scrapyard -10/Materials (discovered 2 exits: *Mat / [*Min]) -9/Materials -8/Materials History --------- Turn | Location | Event 1 | -11/Scrapyard | Discovered new exit (range 0) 1 | -11/Scrapyard | Entered Materials 117 | -10/Materials | Discovered new exit (range 6) 300 | -10/Materials | Build established: Mutant 399 | -10/Materials | Discovered new exit (range 15) 440 | -10/Materials | Entered another Materials area 440 | -9/Materials | Evolved 2 slots: Utility x2 808 | -9/Materials | Lost 4 parts (2n2w) 1067 | -9/Materials | Discovered new exit (range 10) 1116 | -9/Materials | Repaired Sml. Storage Unit 1130 | -9/Materials | Entered another Materials area 1130 | -8/Materials | Evolved 2 slots: Power x1, Weapon x1 1424 | -8/Materials | Lost 4 parts (1n2u1w) 1549 | -8/Materials | Core integrity fell below 50% 1556 | -8/Materials | Destroyed 7 combat bots 1564 | -8/Materials | Core integrity fell below 20% 1582 | -8/Materials | Destroyed by G-47 Trooper with Particle Gun Last Messages --------------- 01559_ U-05 Engineer lays Concrete. 01559_ K-01 Serf collects debris. 01560_ U-05 Engineer lays Concrete. 01560_ Critical hit (Burn: +37). 01562_ U-05 Engineer lays Concrete. 01563_ K-01 Serf collects debris. 01563_ Critical hit (Burn: +37). 01564_ Acquired Particle Gun. 01565_ U-05 Engineer lays Concrete. 01565_ R-06 Scavenger collects Imp. Hover Unit. 01566_ U-05 Engineer lays Concrete. 01566_ Acquired 24 matter. 01566_ Electrolysis Chamber disabled. 01567_ U-05 Engineer lays Concrete. 01568_ System corrupted: Component data lost. 01571_ Acquired Particle Gun. 01574_ U-05 Engineer lays Concrete. 01576_ Particle Gun destroyed. 01577_ U-05 Engineer lays Concrete. 01581_ U-05 Engineer builds a Wall. Map ----- +----------------------------------------------------+ | ?????????????????????????????????????????????????? | | ??????????????????????????##########?????????????? | | ??????????????????????????# #?????######?#? | | ??????????????????????????# """ #??#?? ## | | ??????????????????????????# """ #??# """ """ # | | ??????????????????????????# """ #??# """ """ #? | | ??????????????????????????# ] #??# "S """ #? | | ??????????????????????????# """ #??# """ #? | | ??????????????????????????#! """ #??# "" #? | | ??????????????????????????# """ #??# [[#? | | ??????????????????????????# #??# % %[ #? | | ??????????????????????????#####+###########+###### | | ?????????????????########### !%%== = !== | | ?????????????????# + % *= %%% % * | | ?????????????????# # % %= = ==! %%*%=* | | ??????????????#### ] # ##############+#### | | ?????????????## # # #?????????????! ?? | | ????????????### """" # #????????????? # | | ????????????# # """" + #????????????? *# | | ???#/######### # """" # #?????????????? # | | ?? + # #?????????????? # | | ???????#""" #%##+###### ##????????????? !# | | ???????# " [ u ## # # #?????????????? # | | ??????## " [*% # %* ! #?????????????? # | | ??????# Y g gg *% #?????????????? # | | ??????# =%! # g= @ #????????????????? | | ??? # # g #????????????????? | | ?? # % #+###????????????????? | | ??" # # # # ????????????????? | | ????? [ # a### "" #??????????????? | | ??? # ""##o #?? "" =???????????????? | | ???### # ##### #?? ! """ ????????????????? | | ?????" ##????# #?? ????????????????? | | ?????" # ?????? #? """ ????????????????? | | ?????" # ????? #?? """ ???????????????? | | ????? " ?+ ????? ??? ""??????????????????? | | ??????? ?# ???? #?? ???????????????????? | | ????????????#???### #??###???????????????????? | | ??????????????????### ###????????????????????????? | | ????????????????????? ???????????????????????????? | | ????????????????????? ???????????????????????????? | | ????????????????????? ???????????????????????????? | | ?????????????????????????????????????????????????? | | ?????????????????????????????????????????????????? | | ?????????????????????????????????????????????????? | | ?????????????????????????????????????????????????? | | ?????????????????????????????????????????????????? | | ?????????????????????????????????????????????????? | | ?????????????????????????????????????????????????? | | ?????????????????????????????????????????????????? | +----------------------------------------------------+ Best States ------------- Heat Dissipation 52 Energy Generation 14 Energy Capacity 280 Matter Stores 300 Matter Capacity 300 Sight Range 16 Terrain Scan Density 10 Armor Coverage 150 Evasion (%) 55 Targeting Accuracy 8 Recoil Reduction 2 Item Schematics ----------------- None Robot Schematics ------------------ None Fabricated ------------ Nothing Alien Tech Used ----------------- None Achievements -------------- None Challenges ------------ None Game ------ Seed HardcellSmartbombBlade Manual? 0 Play Time 00:14:42 Cumulative 130.5 hours Start 2024.09.12 @ 19:39:23 End 2024.09.12 @ 19:54:51 Sessions 1 Manual Loads 0 Difficulty Rogue Special Mode None Game No. 212 Rogue 211 Adventurer 1 Explorer 0 Win Type - Total 1 Types 1/0/0/0/0/0/0/0/0 Lore% 66 Gallery% 67 Achievement% 50 Wizard Run 0 Options --------- Layout 1 ASCII 0 Keyboard 0 Movement Mouse Keybinds 0 Fullscreen 2 Font 20/SmallcapsGlow Map View 54x42 Zoom Use 0% Tactical HUD 1 Map Filters NONE Filters NONE Steam 0 RUN: 4796be65-d40e-44d9-88eb-1ed8f29d4311